bitfinex-derivatives/quotes_SOLF0:USTF0_20240924
["timestamp","ask_amount","ask_price","bid_price","bid_amount"]
[1727146572649,14.79,146.54,146.52,3.4126]
[1727146573147,14.79,146.54,146.53,3.4124]
[1727146573459,1.4019,146.56,146.5,14.79]
[1727146574743,1.4019,146.56,146.55,3.4119]
[1727146576042,4.81804891,146.57,146.56,3.4117]
[1727146576448,3.47081478,146.6,146.58,3.4111]
[1727146576747,16.1469,146.61,146.58,3.4111]
[1727146577051,16.1469,146.61,146.59,3.411]
[1727146577257,4.69591601,146.61,146.53,14.79]
[1727146577556,4.69591601,146.61,146.6,3.4108]
[1727146577740,3.33901601,146.61,146.6,3.4108]
[1727146577946,14.79,146.63,146.53,14.79]
[1727146578147,14.79,146.63,146.61,3.4104]
[1727146578850,18.25451023,146.63,146.61,3.4104]
[1727146580253,18.25451023,146.63,146.53,14.79]
[1727146580254,21.66461023,146.63,146.53,14.79]
[1727146580952,21.66461023,146.63,146.59,3.4108]
[1727146581554,21.66461023,146.63,146.6,3.4107]
[1727146581947,18.25451023,146.63,146.53,14.79]
[1727146582147,18.25451023,146.63,146.6,3.4106]
[1727146582352,18.25451023,146.63,146.53,14.79]
[1727146582748,18.25451023,146.63,146.61,3.4105]
[1727146583953,0.979945,146.72,146.59,14.79]
[1727146584149,3.34345082,146.7,146.61,14.79]
[1727146584456,3.34345082,146.7,146.66,3.4094]
[1727146585453,2.7863,146.71,146.66,3.4094]
[1727146585659,0.979945,146.72,146.66,3.4094]
[1727146585847,3.4704173,146.71,146.66,3.4094]
[1727146586153,0.979945,146.72,146.66,3.4094]
[1727146586746,4.39336391,146.72,146.66,3.4094]
[1727146587152,0.979945,146.72,146.66,18.1994]
[1727146587353,0.979945,146.72,146.71,3.4082]
[1727146596260,0.979945,146.72,146.43,10.2438]
[1727146596461,16.0985,146.71,146.61,14.79]
[1727146596963,4.47329651,146.72,146.65,14.79]
[1727146597170,0.979945,146.72,146.65,14.79]
[1727146597368,0.979945,146.72,146.67,3.409]
[1727146597967,0.979945,146.72,146.66,3.4093]
[1727146598265,0.979945,146.72,146.63,14.79]
[1727146600577,0.979945,146.72,146.64,3.4096]
[1727146600771,14.79,146.71,146.64,3.4096]
[1727146600963,14.79,146.71,146.61,14.79]
[1727146601159,0.979945,146.72,146.63,14.79]
[1727146601670,0.979945,146.72,146.66,3.4092]
[1727146603264,14.79,146.71,146.6,14.79]
[1727146603472,14.79,146.69,146.6,14.79]
[1727146603668,14.79,146.69,146.58,16.0414]
[1727146603970,14.79,146.69,146.62,3.4101]
[1727146603971,1.3694,146.68,146.62,3.4101]
[1727146604765,1.3694,146.68,146.63,3.41]
[1727146605666,1.3694,146.68,146.61,3.4105]
[1727146605862,2.7895,146.68,146.61,3.4105]
[1727146606773,4.1113,146.68,146.61,3.4105]
[1727146607073,14.79,146.67,146.6,3.4107]
[1727146607276,14.79,146.65,146.57,1.3607]
[1727146607469,18.13117887,146.65,146.57,1.3607]
[1727146607776,14.79,146.63,146.56,81.86]
[1727146608073,18.2002,146.63,146.58,3.411]
[1727146608775,21.54087887,146.65,146.56,96.65]
[1727146609068,18.1997,146.65,146.56,96.65]
[1727146609262,3.4099,146.64,146.56,81.86]
[1727146609676,18.18405103,146.65,146.55,14.79]
[1727146610174,3.4101,146.63,146.58,3.4111]
[1727146612067,3.4099,146.64,146.59,3.4109]
[1727146612268,15.769945,146.72,146.55,14.79]
[1727146612269,0.979945,146.72,146.63,14.79]
[1727146612471,0.979945,146.72,146.69,14.79]
[1727146612874,0.979945,146.72,146.66,3.44172533]
[1727146613175,0.979945,146.72,146.71,3.4082]
[1727146622481,0.979945,146.77,146.71,23.57]
[1727146622680,0.979945,146.82,146.76,23.57]
[1727146622879,0.979945,146.82,146.74,23.57]
[1727146623381,0.979945,146.82,146.71,23.57]
[1727146623582,0.979945,146.82,146.77,3.4067]
[1727146623776,0.979945,146.82,146.71,23.57]
[1727146624281,3.406,146.81,146.75,3.4071]
[1727146624488,23.57,146.81,146.69,23.57]
[1727146625185,3.4063,146.8,146.74,3.4074]
[1727146625584,4.104,146.79,146.74,3.4074]
[1727146626286,4.104,146.79,146.75,3.4072]
[1727146627280,4.104,146.79,146.71,23.57]
[1727146632187,4.104,146.79,146.76,3.4069]
[1727146632389,4.104,146.79,146.71,23.57]
[1727146632587,0.979945,146.82,146.76,23.57]
[1727146632793,0.979945,146.82,146.81,3.4059]
[1727146632992,0.979945,146.82,146.81,26.9759]
[1727146633291,0.979945,146.82,146.74,23.57]
[1727146633795,0.979945,146.82,146.77,3.4067]
[1727146635996,4.385645,146.82,146.77,3.4067]
[1727146636291,0.979945,146.82,146.77,3.4067]
[1727146637293,4.385645,146.82,146.77,3.4067]
[1727146637997,3.406,146.81,146.76,3.407]
[1727146638205,3.41534896,146.8,146.76,3.407]
[1727146638394,3.4061,146.8,146.71,14.73]
[1727146638594,3.45896946,146.79,146.71,14.73]
[1727146639294,18.136,146.81,146.71,14.73]
[1727146639496,14.73,146.81,146.75,3.4071]
[1727146639698,3.4062,146.8,146.75,3.4071]
[1727146639898,3.34003681,146.79,146.71,14.73]
[1727146640504,3.4064,146.79,146.74,3.4073]
[1727146640703,3.3499216,146.78,146.74,3.4073]
[1727146641401,3.3499216,146.78,146.75,3.4072]
[1727146641796,3.4062,146.8,146.75,3.4072]
[1727146642004,3.32650702,146.8,146.75,3.4072]
[1727146642301,3.4064,146.79,146.76,3.407]
[1727146642503,3.36980582,146.8,146.76,3.407]
[1727146642705,3.4062,146.8,146.76,3.407]
[1727146642904,0.979945,146.82,146.74,14.73]
[1727146643499,4.385645,146.82,146.74,14.73]
[1727146644211,0.979945,146.82,146.74,14.73]
[1727146645206,4.385645,146.82,146.79,3.4062]
[1727146645702,0.979945,146.82,146.8,3.4061]
[1727146646802,0.979945,146.82,146.79,3.4063]
[1727146647309,4.385645,146.82,146.79,3.4063]
[1727146647808,4.385645,146.82,146.74,14.73]
[1727146647809,4.385645,146.82,146.78,3.4065]
[1727146648211,3.4061,146.8,146.74,14.73]
[1727146648508,3.35173824,146.8,146.72,14.73]
[1727146648804,6.75803824,146.8,146.76,3.4068]
[1727146649005,6.75803824,146.8,146.72,14.73]
[1727146649409,3.35173824,146.8,146.72,14.73]
[1727146649610,3.35173824,146.8,146.73,14.73]
[1727146650005,3.35173824,146.8,146.78,3.4066]
[1727146650313,3.406,146.81,146.78,3.4066]
[1727146650314,19.115645,146.82,146.78,3.4066]
[1727146651814,19.115645,146.82,146.79,3.4063]
[1727146652314,3.4059,146.81,146.78,3.4065]
[1727146653116,19.115645,146.82,146.79,3.4063]
[1727146654914,15.709945,146.82,146.79,3.4063]
[1727146655410,19.115745,146.82,146.79,3.4063]
[1727146655811,15.709945,146.82,146.78,3.4065]
[1727146656012,3.4059,146.81,146.78,3.4065]
[1727146656318,3.46626342,146.8,146.78,3.4065]
[1727146659917,3.4059,146.81,146.78,3.4065]
[1727146660425,3.4059,146.81,146.79,3.4063]
[1727146660618,19.115745,146.82,146.79,3.4063]
[1727146662018,19.115745,146.82,146.8,3.4061]
[1727146662216,19.115745,146.82,146.73,14.73]
[1727146662710,3.406,146.81,146.73,14.73]
[1727146663224,3.4062,146.8,146.77,3.4067]
[1727146663416,15.709945,146.82,146.73,14.73]
[1727146663815,3.4059,146.81,146.78,3.4064]
[1727146665416,3.4059,146.81,146.79,3.4063]
[1727146666526,19.115645,146.82,146.79,3.4063]
[1727146668522,19.115645,146.82,146.8,3.4061]
[1727146670436,13.805645,146.82,146.8,3.4061]
[1727146670922,10.399945,146.82,146.8,3.4061]
[1727146671531,0.979945,146.82,146.81,3.4059]
[1727146674533,0.979945,146.82,146.8,3.406]
[1727146674929,0.979945,146.82,146.79,9.42]
[1727146675126,10.399945,146.82,146.7,75.32696248]
[1727146675335,10.399945,146.82,146.77,9.42]
[1727146675737,10.399945,146.82,146.79,3.4063]
[1727146676431,9.42,146.81,146.76,9.42]
[1727146677238,9.42,146.81,146.78,3.4064]
[1727146678138,10.399945,146.82,146.79,3.4063]
[1727146678730,10.399945,146.82,146.77,9.42]
[1727146679637,0.979945,146.82,146.79,9.42]
[1727146680343,0.979945,146.82,146.8,3.4059]
[1727146680927,0.979945,146.82,146.71,0.2673]
[1727146681128,0.979945,146.82,146.77,9.42]
[1727146681328,0.979945,146.82,146.71,0.2673]
[1727146681541,0.979945,146.82,146.77,9.42]
[1727146682041,9.42,146.81,146.78,3.4065]
[1727146682740,9.42,146.81,146.77,3.4067]
[1727146682741,9.42,146.8,146.77,3.4067]
[1727146683040,12.87543137,146.8,146.77,3.4067]
[1727146683236,9.42,146.8,146.76,9.42]
[1727146683436,9.42,146.81,146.77,9.42]
[1727146684940,9.42,146.81,146.78,3.4066]
[1727146692943,10.7561,146.81,146.78,3.4066]
[1727146693449,1.3361,146.81,146.76,9.42]
[1727146693647,9.42,146.8,146.76,9.42]
[1727146693952,12.78514211,146.8,146.77,3.4068]
[1727146694147,9.42,146.78,146.7,68.51046248]
[1727146694353,9.42,146.77,146.72,9.42]
[1727146694554,9.42,146.77,146.74,3.4074]
[1727146695451,9.42,146.77,146.75,3.4072]
[1727146696947,9.42,146.78,146.76,3.407]
[1727146697855,8.13064211,146.8,146.76,3.407]
[1727146698057,9.42,146.78,146.76,3.407]
[1727146701158,9.42,146.78,146.65,6.8189]
[1727146701159,9.42,146.77,146.65,6.8189]
[1727146701356,9.42,146.7,146.66,5.68482684]
[1727146701561,9.42,146.68,146.63,9.42]
[1727146701855,9.42,146.67,146.65,3.4095]
[1727146702359,9.42,146.66,146.59,4.63368933]
[1727146702563,9.42,146.61,146.59,4.63368933]
[1727146703055,9.42,146.6,146.55,16.83390292]
[1727146703259,9.42,146.6,146.55,9.42]
[1727146703561,12.74764505,146.61,146.56,9.42]
[1727146703760,1.3716,146.68,146.56,9.42]
[1727146703956,9.42,146.62,146.57,9.42]
[1727146704156,9.42,146.62,146.54,4.63715145]
[1727146704358,14.75,146.62,146.53,96.55]
[1727146704758,21.48794505,146.62,146.53,96.55]
[1727146705064,18.07764505,146.62,146.53,96.55]
[1727146705261,18.07764505,146.62,146.54,3.4121]
[1727146705262,3.4108,146.6,146.54,3.4121]
[1727146705464,14.75,146.59,146.54,3.4121]
[1727146705764,16.07,146.59,146.54,3.4121]
[1727146706152,19.40481228,146.59,146.54,3.4121]
[1727146706463,20.73801228,146.59,146.54,3.4121]
[1727146706663,20.73801228,146.59,146.52,3.4124]
[1727146707152,1.3757,146.58,146.52,3.4124]
[1727146707359,4.787,146.58,146.52,3.4124]
[1727146708266,4.787,146.58,146.53,3.4123]
[1727146708471,14.75,146.56,146.53,3.4123]
[1727146708765,14.75,146.56,146.54,3.4122]
[1727146708959,14.75,146.56,146.48,68.60418848]
[1727146709161,14.75,146.56,146.48,83.35418848]
[1727146709356,14.75,146.56,146.54,3.4121]
[1727146709558,1.3757,146.58,146.5,14.75]
[1727146711261,14.75,146.57,146.48,68.60418848]
[1727146711567,14.75,146.55,146.48,68.60418848]
[1727146711862,14.75,146.55,146.5,3.4131]
[1727146712563,14.75,146.55,146.44,96.59]
[1727146713262,14.75,146.55,146.44,14.75]
[1727146713668,18.1619,146.55,146.49,3.4131]
[1727146713868,14.75,146.55,146.49,3.4131]
[1727146714366,14.75,146.55,146.44,14.75]
[1727146714367,18.162,146.55,146.44,14.75]
[1727146715067,18.162,146.55,146.5,3.4129]
[1727146715668,14.75,146.53,146.43,16.0669]
[1727146716271,1.3757,146.58,146.43,16.0669]
[1727146716471,14.75,146.52,146.43,16.0669]
[1727146717867,14.75,146.52,146.49,3.4132]
[1727146719271,14.75,146.52,146.48,3.4135]
[1727146720070,14.75,146.52,146.43,16.0669]
[1727146720265,14.75,146.54,146.45,14.75]
[1727146720676,14.75,146.52,146.43,1.3169]
[1727146720974,14.75,146.5,146.43,1.3169]
[1727146721174,18.1664334,146.5,146.43,1.3169]
[1727146721370,18.1664334,146.5,146.41,14.75]
[1727146721572,19.5178334,146.5,146.39,86.285788]
[1727146721773,14.75,146.48,146.46,3.4139]
[1727146722265,14.75,146.48,146.45,3.4142]
[1727146723176,14.75,146.48,146.39,86.285788]
[1727146723476,14.75,146.48,146.46,3.414]
[1727146723678,14.75,146.48,146.39,86.285788]
[1727146723871,14.75,146.48,146.47,3.4138]
[1727146725275,14.75,146.48,146.46,3.4139]
[1727146726372,14.75,146.48,146.45,3.4142]
[1727146726872,14.75,146.48,146.39,71.535788]
[1727146727674,14.75,146.48,146.45,3.4141]
[1727146728281,14.75,146.48,146.46,3.414]
[1727146729785,14.75,146.48,146.45,3.4142]
[1727146729978,14.75,146.48,146.39,71.535788]
[1727146730174,14.75,146.46,146.39,71.263288]
[1727146730375,14.75,146.44,146.42,3.4148]
[1727146732282,14.75,146.43,146.41,3.415]
[1727146733785,14.75,146.44,146.42,3.4149]
[1727146737385,14.75,146.44,146.35,16.1143]
[1727146737386,14.75,146.44,146.43,3.4147]
[1727146737588,14.75,146.48,146.37,14.75]
[1727146738687,6.1121334,146.5,146.43,3.4146]
[1727146738688,14.75,146.46,146.43,3.4146]
[1727146739788,6.1121334,146.5,146.4,14.75]
[1727146739989,6.1121334,146.5,146.41,14.75]
[1727146739990,1.3514,146.5,146.41,14.75]
[1727146740293,3.34085007,146.49,146.43,14.75]
[1727146740983,1.3514,146.5,146.43,14.75]
[1727146741296,4.80773456,146.5,146.42,1.3192]
[1727146741487,1.3514,146.5,146.47,3.4138]
[1727146741989,4.75737035,146.5,146.48,3.4135]
[1727146742300,1.3514,146.5,146.48,3.4135]
[1727146742896,4.70784511,146.5,146.48,3.4135]
[1727146743393,4.70784511,146.5,146.49,3.4133]
[1727146743588,14.75,146.53,146.44,14.75]
[1727146743794,3.39401598,146.52,146.44,14.75]
[1727146744782,3.39401598,146.52,146.51,3.4129]
[1727146745394,14.75,146.53,146.51,3.4129]
[1727146745988,14.75,146.53,146.44,14.75]
[1727146745989,3.39491837,146.53,146.52,3.4126]
[1727146746187,14.75,146.55,146.52,3.4126]
[1727146746381,14.75,146.53,146.44,14.75]
[1727146747092,18.20468205,146.53,146.44,14.75]
[1727146747493,18.20468205,146.53,146.5,3.4129]
[1727146749400,18.20468205,146.53,146.43,0.2761]
[1727146749799,21.61718205,146.53,146.49,3.4132]
[1727146750098,18.20468205,146.53,146.49,3.4132]
[1727146750498,18.20468205,146.53,146.5,3.4131]
[1727146751395,18.20468205,146.53,146.44,14.75]
[1727146753009,18.20468205,146.53,146.5,3.413]
[1727146754102,18.20468205,146.53,146.51,3.4128]
[1727146756401,9.44,146.52,146.51,3.4128]
[1727146757102,12.90889298,146.52,146.51,3.4128]
[1727146758099,81.98,146.64,146.51,9.44]
[1727146758307,1.3705,146.61,146.52,9.44]
[1727146758501,9.44,146.57,146.52,9.44]
[1727146758697,1.3705,146.61,146.49,1.3803]
[1727146758897,9.44,146.6,146.55,9.44]
[1727146759405,9.44,146.6,146.59,3.411]
[1727146760394,1.3705,146.61,146.52,14.75]
[1727146760603,14.75,146.59,146.5,16.2769]
[1727146761301,14.75,146.59,146.56,3.4116]
[1727146761702,14.75,146.57,146.5,1.2528]
[1727146762002,14.75,146.55,146.49,1.3803]
[1727146762601,14.75,146.55,146.53,3.4123]
[1727146762807,18.23317291,146.55,146.53,3.4123]
[1727146763001,18.23317291,146.55,146.47,14.75]
[1727146763205,18.23317291,146.55,146.52,3.4124]
[1727146763405,18.23317291,146.55,146.47,14.75]
[1727146765304,14.75,146.54,146.46,1.2521]
[1727146765502,14.75,146.52,146.4,6.8306]
[1727146765702,14.75,146.52,146.42,16.0021]
[1727146766310,14.75,146.52,146.5,3.4131]
[1727146772421,14.75,146.52,146.42,1.2521]
[1727146772627,14.75,146.49,146.41,1.6282]
[1727146773125,14.75,146.49,146.47,3.4137]
[1727146773326,14.75,146.49,146.41,16.3782]
[1727146773624,14.75,146.51,146.43,14.75]
[1727146774625,14.75,146.51,146.49,3.4133]
[1727146778228,14.75,146.51,146.47,3.4137]
[1727146778730,14.75,146.51,146.43,14.75]
[1727146778731,4.89677291,146.55,146.43,14.75]
[1727146779031,14.75,146.52,146.42,14.75]
[1727146779734,14.75,146.5,146.41,1.6282]
[1727146780631,14.75,146.5,146.46,3.4138]
[1727146781131,16.153,146.5,146.46,3.4138]
[1727146782631,19.5661,146.5,146.41,1.3551]
[1727146782831,16.1539,146.49,146.41,1.3551]
[1727146783434,16.1539,146.49,146.46,3.4139]
[1727146784331,9.44,146.47,146.46,3.4139]
[1727146784937,12.85303426,146.47,146.4,9.44]
[1727146785135,9.44,146.44,146.4,9.44]
[1727146785435,9.44,146.43,146.37,70.09155155]
[1727146785635,12.80486712,146.45,146.4,9.44]
[1727146786739,1.4039,146.49,146.44,9.44]
[1727146786939,231.1312815,146.65,146.37,70.09155155]
[1727146786940,7.1312815,146.65,146.48,9.44]
[1727146787137,9.44,146.62,146.57,9.44]
[1727146787333,3.41939928,146.62,146.61,3.4105]
[1727146787937,9.44,146.62,146.59,3.4108]
[1727146788137,9.44,146.61,146.59,3.4108]
[1727146788542,3.37841157,146.6,146.59,3.4108]
[1727146788730,9.44,146.61,146.59,3.4108]
[1727146788932,9.44,146.62,146.57,9.44]
[1727146789833,9.44,146.62,146.6,3.4106]
[1727146790447,5.95261482,146.63,146.6,3.4106]
[1727146793046,5.95261482,146.63,146.61,3.4105]
[1727146793344,4.65931482,146.63,146.55,14.74]
[1727146793749,4.65931482,146.63,146.61,3.4104]
[1727146794542,3.35835665,146.66,146.6,14.74]
[1727146794751,14.74,146.7,146.6,14.74]
[1727146795043,3.37985395,146.7,146.6,14.74]
[1727146795345,14.74,146.7,146.6,14.74]
[1727146795547,18.1696731,146.7,146.6,14.74]
[1727146796948,14.74,146.69,146.6,14.74]
[1727146797338,14.74,146.69,146.65,3.4094]
[1727146797541,3.34378798,146.68,146.6,14.74]
[1727146797842,3.34378798,146.68,146.67,3.4091]
[1727146798043,17.436,146.71,146.6,14.74]
[1727146798542,20.8916911,146.71,146.62,14.74]
[1727146799544,20.8916911,146.71,146.68,3.4087]
[1727146799853,20.8916911,146.71,146.58,1.3232]
[1727146799854,3.41200555,146.75,146.67,14.74]
[1727146800146,14.74,146.77,146.67,14.74]
[1727146800351,18.16906047,146.77,146.67,14.74]
[1727146800841,18.16906047,146.77,146.73,3.4076]
[1727146801042,18.16906047,146.77,146.67,14.74]
[1727146801443,18.16906047,146.77,146.73,3.4076]
[1727146801648,1.4305,146.78,146.69,14.74]
[1727146802043,1.4305,146.78,146.76,3.407]
[1727146802238,1.4305,146.78,146.72,14.74]
[1727146802746,1.4305,146.78,146.77,3.4068]
[1727146803347,1.4305,146.78,146.66,0.2713]
[1727146803348,16.1705,146.78,146.66,0.2713]
[1727146803536,14.74,146.76,146.66,0.2713]
[1727146803741,14.74,146.76,146.66,15.0113]
[1727146804047,14.74,146.76,146.71,3.4081]
[1727146804446,14.74,146.76,146.66,15.0113]
[1727146804648,14.74,146.76,146.68,14.74]
[1727146805048,14.74,146.76,146.66,0.2713]
[1727146805252,14.74,146.76,146.67,14.74]
[1727146805549,1.4305,146.78,146.67,14.74]
[1727146805751,14.74,146.77,146.67,14.74]
[1727146806149,18.1468,146.77,146.72,3.4079]
[1727146806349,3.4068,146.77,146.72,3.4079]
[1727146807653,1.4305,146.78,146.68,23.58]
[1727146808247,1.4305,146.78,146.76,3.407]
[1727146809349,2.754,146.81,146.7,23.58]
[1727146809548,2.754,146.81,146.66,7.09]
[1727146809549,2.7056,146.81,146.73,23.58]
[1727146809950,2.7056,146.81,146.78,3.4064]
[1727146810148,2.7056,146.81,146.73,23.58]
[1727146810355,4.36406224,146.82,146.73,23.58]
[1727146811961,4.36406224,146.82,146.79,3.4062]
[1727146812155,0.979945,146.82,146.73,26.95355146]
[1727146812356,0.979945,146.82,146.75,23.58]
[1727146812559,4.38655713,146.82,146.75,23.58]
[1727146812761,0.979945,146.82,146.75,23.58]
[1727146813257,4.4609391,146.82,146.75,23.58]
[1727146813563,4.4609391,146.82,146.81,3.4059]
[1727146814854,0.979945,146.82,146.81,3.4059]
[1727146818966,0.979945,146.82,146.74,2.9209]
[1727146819581,0.979945,146.82,146.78,3.4065]
[1727146821368,0.979945,146.82,146.7,81.82]
[1727146821369,23.58,146.81,146.7,81.82]
[1727146821667,0.979945,146.82,146.78,3.4066]
[1727146821863,4.348488,146.82,146.71,23.58]
[1727146822067,0.979945,146.82,146.71,23.58]
[1727146822264,0.979945,146.82,146.78,3.4064]
[1727146822668,4.41712827,146.82,146.78,3.4064]
[1727146822970,0.979945,146.82,146.78,3.4064]
[1727146823365,4.33974648,146.82,146.78,3.4064]
[1727146823560,0.979945,146.82,146.71,23.58]
[1727146823765,0.979945,146.82,146.73,23.58]
[1727146823961,4.39053893,146.82,146.73,23.58]
[1727146824264,0.979945,146.82,146.76,23.58]
[1727146824671,0.979945,146.82,146.81,3.4059]
[1727146833373,0.979945,146.82,146.74,2.834]
[1727146833572,0.979945,146.82,146.74,17.2763]
[1727146833877,14.71,146.81,146.72,81.78]
[1727146834071,14.71,146.79,146.72,81.78]
[1727146834273,3.39261232,146.78,146.72,81.78]
[1727146835077,14.71,146.79,146.7,14.71]
[1727146835471,18.1165,146.79,146.73,3.4076]
[1727146835677,18.18262935,146.79,146.73,3.4076]
[1727146836081,21.58902935,146.79,146.74,3.4075]
[1727146837078,3.47262935,146.79,146.75,3.4071]
[1727146837276,3.47262935,146.79,146.73,14.71]
[1727146837576,1.2911,146.8,146.69,0.2673]
[1727146837577,1.2911,146.8,146.75,14.71]
[1727146838476,1.2911,146.8,146.76,3.4068]
[1727146838673,3.46295958,146.79,146.73,14.71]
[1727146838974,1.2911,146.8,146.76,3.4069]
[1727146839482,3.39445024,146.79,146.76,3.4069]
[1727146839969,1.2911,146.8,146.76,3.4069]
[1727146840374,1.2911,146.8,146.67,81.78]
[1727146840375,14.71,146.78,146.67,81.78]
[1727146840576,1.3598,146.77,146.68,14.71]
[1727146840775,1.3598,146.77,146.73,3.4076]
[1727146840974,1.3598,146.77,146.68,14.71]
[1727146841578,1.3598,146.77,146.73,3.4077]
[1727146841876,1.3598,146.77,146.68,14.71]
[1727146842076,1.3598,146.77,146.7,14.71]
[1727146842583,1.3598,146.77,146.68,14.71]
[1727146843373,4.7667,146.77,146.72,3.4078]
[1727146843568,1.3598,146.77,146.68,14.71]
[1727146844382,3.4071,146.76,146.72,3.408]
[1727146844578,1.3598,146.77,146.72,3.408]
[1727146844985,4.7667,146.77,146.72,3.408]
[1727146845585,4.7667,146.77,146.73,3.4077]
[1727146845885,4.7667,146.77,146.68,14.71]
[1727146846088,1.3598,146.77,146.68,14.71]
[1727146846278,14.71,146.75,146.67,81.78]
[1727146846784,18.1175,146.75,146.67,81.78]
[1727146847185,3.4076,146.74,146.69,3.4086]
[1727146847381,3.4076,146.74,146.66,14.71]
[1727146847784,3.4078,146.73,146.65,14.71]
[1727146848084,4.7535,146.73,146.65,14.71]
[1727146848282,4.7535,146.73,146.68,3.4088]
[1727146848490,4.7535,146.73,146.65,14.71]
[1727146848990,4.7535,146.73,146.69,3.4087]
[1727146849689,1.3457,146.73,146.7,3.4084]
[1727146850286,4.7534,146.73,146.69,3.4086]
[1727146851390,14.71,146.71,146.62,14.71]
[1727146852295,18.1183,146.71,146.67,3.409]
[1727146852489,14.71,146.68,146.58,84.7047]
[1727146852689,14.71,146.65,146.58,84.4367]
[1727146852887,18.20144104,146.65,146.62,3.4102]
[1727146853887,18.20144104,146.65,146.61,3.4104]
[1727146854288,14.71,146.64,146.54,2.901]
[1727146854592,14.71,146.64,146.55,14.71]
[1727146854990,18.05470756,146.64,146.55,14.71]
[1727146855193,21.46450756,146.64,146.59,3.4108]
[1727146855591,18.05470756,146.64,146.59,3.4108]
[1727146856093,18.05470756,146.64,146.6,3.4107]
[1727146856890,14.71,146.62,146.53,14.71]
[1727146857091,1.2916,146.65,146.51,14.71]
[1727146857092,14.71,146.6,146.51,14.71]
[1727146857486,18.1208,146.6,146.55,3.4118]
[1727146858096,14.71,146.6,146.56,3.4117]
[1727146858893,14.71,146.62,146.53,14.71]
[1727146859295,14.71,146.62,146.58,3.411]
[1727146859805,18.1203,146.62,146.58,3.411]
[1727146860103,1.3212,146.63,146.57,3.4114]
[1727146860104,14.71,146.6,146.57,3.4114]
[1727146861200,14.71,146.58,146.5,1.4255]
[1727146861399,1.3212,146.63,146.53,14.71]
[1727146861593,1.3212,146.63,146.55,14.71]
[1727146861793,16.0312,146.63,146.54,14.71]
[1727146862501,16.0312,146.63,146.59,3.4109]
[1727146862996,16.0312,146.63,146.6,3.4107]
[1727146864389,1.3212,146.63,146.58,14.71]
[1727146864703,1.2954,146.64,146.58,14.71]
[1727146865600,1.2954,146.64,146.63,3.4101]
[1727146865999,1.2954,146.64,146.62,3.4101]
[1727146866302,2.6876,146.64,146.55,14.71]
[1727146867504,2.6876,146.64,146.6,3.4106]
[1727146867806,2.6876,146.64,146.55,14.71]
[1727146868102,2.6876,146.64,146.61,3.4105]
[1727146870104,2.6876,146.64,146.55,14.71]
[1727146870402,2.6876,146.64,146.57,14.71]
[1727146870800,79.95201615,146.73,146.59,14.71]
[1727146871000,4.1698,146.72,146.61,14.71]
[1727146871205,14.71,146.71,146.68,3.4089]
[1727146871406,14.71,146.71,146.61,14.71]
[1727146871795,14.71,146.71,146.66,3.4094]